bitfinex-derivatives/quotes_ETHF0:USTF0_20250531
["timestamp","ask_amount","ask_price","bid_price","bid_amount"]
[1748666422509,1.29329565,2521.4,2521.3,7.16225377]
[1748666423610,0.1982,2521.6,2521.5,0.79286]
[1748666423800,0.1982,2521.6,2521.5,8.12366]
[1748666424209,0.1982,2521.6,2521.5,9.46386]
[1748666427508,0.1982,2521.6,2521.5,8.79486]
[1748666428009,0.1982,2521.6,2521.5,4.00066]
[1748666428314,0.1982,2521.6,2521.5,0.79286]
[1748666428916,0.1982,2521.6,2521.4,0.79287]
[1748666429105,1.3599,2521.7,2521.5,0.79286]
[1748666430313,0.6799,2521.8,2521.7,0.7928]
[1748666430516,0.6799,2521.8,2521.6,0.79281]
[1748666430705,1.3056,2521.7,2521.6,0.79281]
[1748666431817,1.5038,2521.7,2521.6,0.79281]
[1748666432011,1.5038,2521.7,2521.5,3.2078]
[1748666432315,2.2966,2521.7,2521.5,3.2078]
[1748666432715,1.3056,2521.6,2521.3,0.00594377]
[1748666432916,1.3056,2521.6,2521.4,0.79287]
[1748666433716,1.3056,2521.6,2521.5,3.2078]
[1748666434122,1.3056,2521.6,2521.5,4.00066]
[1748666435814,0.1982,2521.7,2521.6,0.79283]
[1748666436418,1.5052,2521.7,2521.6,0.79283]
[1748666437923,0.1982,2521.7,2521.6,0.79283]
[1748666438325,0.1982,2521.7,2521.6,2.75963]
[1748666440124,0.1982,2521.7,2521.6,0.79283]
[1748666440326,1.48,2521.7,2521.6,0.79283]
[1748666441921,0.1982,2521.7,2521.6,2.08923]
[1748666451142,0.1982,2521.7,2521.6,0.79283]
[1748666454846,0.8786,2521.7,2521.5,3.2078]
[1748666455045,1.3225,2521.6,2521.5,4.00066]
[1748666456345,1.3225,2521.6,2521.3,0.00594377]
[1748666456544,1.3225,2521.6,2521.4,0.79289]
[1748666456545,0.6511,2521.5,2521.4,0.79289]
[1748666457044,1.94498426,2521.5,2521.4,0.79289]
[1748666460544,1.94498426,2521.5,2521.4,2.14179]
[1748666461842,2.14318426,2521.5,2521.4,2.14179]
[1748666463145,1.49208426,2521.5,2521.4,2.14179]
[1748666463347,1.49208426,2521.5,2521.4,2.77179]
[1748666463843,0.1982,2521.5,2521.4,2.77179]
[1748666466442,0.00594377,2522.1,2521.5,1.98212]
[1748666466651,0.00594377,2522.1,2522.0,0.7927]
[1748666466838,0.00594377,2522.1,2522.0,3.4361]
[1748666467042,2.36673368,2522.4,2522.3,0.79261]
[1748666467238,2.36673368,2522.4,2522.3,8.10041]
[1748666467652,1.31243692,2522.6,2522.5,0.79255]
[1748666468350,12.3078,2522.6,2521.7,3.2078]
[1748666468645,0.79261,2522.3,2521.7,3.2078]
[1748666468950,6.50077,2522.2,2521.7,4.5672]
[1748666469151,1.2537,2522.1,2521.7,4.5672]
[1748666469352,1.2537,2522.1,2522.0,0.7927]
[1748666470447,2.04638,2522.1,2521.7,4.00058]
[1748666470650,1.2537,2522.1,2521.7,3.2078]
[1748666470949,1.2465,2522.0,2521.7,3.2078]
[1748666471352,1.2465,2522.0,2521.7,4.00059]
[1748666471545,1.2465,2522.0,2521.7,3.2078]
[1748666471948,2.03922,2522.0,2521.7,3.2078]
[1748666472149,1.2465,2521.9,2521.7,3.2078]
[1748666472347,1.2465,2521.9,2521.7,4.0006]
[1748666473951,1.2465,2521.9,2521.8,0.79277]
[1748666474743,4.4544,2522.2,2522.0,0.79268]
[1748666475048,1.3586,2522.1,2522.0,0.79268]
[1748666475751,2.66359646,2522.1,2522.0,0.79268]
[1748666475952,0.79273,2522.0,2521.7,0.79278]
[1748666476147,1.2948,2522.0,2521.4,3.2078]
[1748666476353,0.79279,2521.8,2521.5,0.79285]
[1748666476554,1.2948,2521.7,2521.5,0.79285]
[1748666476851,2.6014,2521.7,2521.5,0.79285]
[1748666477247,2.59979646,2521.6,2521.5,0.79285]
[1748666478652,1.2948,2521.6,2521.5,0.79285]
[1748666478850,1.3066,2521.7,2521.6,0.79283]
[1748666479159,1.3066,2521.7,2521.5,0.79284]
[1748666480053,2.5604,2521.7,2521.5,0.79284]
[1748666480455,2.5604,2521.7,2521.6,0.79283]
[1748666480658,1.3066,2521.7,2521.6,0.79283]
[1748666482655,3.2078,2522.2,2521.5,1.3585]
[1748666482855,1.315,2522.1,2521.7,3.2078]
[1748666483050,0.7927,2522.0,2521.7,4.00059]
[1748666483246,1.2991,2521.9,2521.7,4.00059]
[1748666483454,1.2991,2521.9,2521.8,0.79277]
[1748666483646,1.2991,2521.9,2521.7,3.2078]
[1748666483959,0.79277,2521.8,2521.7,3.2078]
[1748666484458,2.09185,2521.9,2521.7,3.2078]
[1748666484957,2.07607,2521.8,2521.7,3.2078]
[1748666485556,3.39826897,2521.8,2521.7,3.2078]
[1748666485761,2.60549897,2521.8,2521.7,3.2078]
[1748666487262,2.60549897,2521.8,2521.6,0.79281]
[1748666487651,0.6789,2521.7,2521.6,0.79281]
[1748666488963,0.6789,2521.7,2521.5,4.00064]
[1748666489159,0.6789,2521.7,2521.6,0.79283]
[1748666490457,0.6789,2521.7,2521.5,3.2078]
[1748666490658,0.6789,2521.7,2521.5,4.4823]
[1748666491161,0.6789,2521.7,2521.5,5.27513]
[1748666491760,0.6789,2521.7,2521.6,0.79283]
[1748666492161,0.6789,2521.7,2521.6,2.06733]
[1748666493159,0.6789,2521.7,2521.6,1.2745]
[1748666493661,0.6789,2521.7,2521.6,2.06733]
[1748666493861,0.6789,2521.7,2521.6,1.2745]
[1748666494163,0.6789,2521.7,2521.6,2.06733]
[1748666496452,0.1982,2521.8,2521.7,0.7928]
[1748666496657,0.1982,2521.8,2521.7,2.1109]
[1748666497765,1.52221363,2521.8,2521.7,2.1109]
[1748666499265,0.1982,2521.8,2521.7,2.1109]
[1748666504460,0.1982,2521.8,2521.7,1.3181]
[1748666505862,0.99097,2521.8,2521.7,1.3181]
[1748666506063,0.1982,2521.8,2521.7,1.3181]
[1748666506974,0.99097,2521.8,2521.7,1.3181]
[1748666507269,1.66257,2521.8,2521.7,1.3181]
[1748666507468,0.8698,2521.8,2521.7,1.3181]
[1748666507664,0.8698,2521.8,2521.5,3.8369]
[1748666507871,0.79281,2521.7,2521.5,3.2078]
[1748666508472,1.66258,2521.8,2521.5,4.00066]
[1748666508769,0.7928,2521.7,2521.5,3.2078]
[1748666508964,0.8698,2521.8,2521.5,4.00065]
[1748666509172,1.32482936,2521.7,2521.5,4.00065]
[1748666509367,1.32482936,2521.7,2521.5,3.2078]
[1748666509569,0.79283,2521.6,2521.5,3.2078]
[1748666509762,0.8698,2521.8,2521.5,4.4602]
[1748666509969,0.79283,2521.6,2521.5,4.4602]
[1748666510367,2.1177379,2521.6,2521.5,4.4602]
[1748666511471,1.3249079,2521.6,2521.5,4.4602]
[1748666511670,2.1177379,2521.6,2521.5,4.4602]
[1748666512270,1.3249079,2521.6,2521.5,4.4602]
[1748666512572,2.3159379,2521.6,2521.5,4.4602]
[1748666514476,1.5231079,2521.6,2521.5,4.4602]
[1748666514968,1.5231079,2521.6,2521.5,5.25306]
[1748666516076,1.5231079,2521.6,2521.5,4.4602]
[1748666517776,1.5231079,2521.6,2521.5,5.25306]
[1748666517975,1.5231079,2521.6,2521.5,4.4602]
[1748666518683,1.5231079,2521.6,2521.5,1.2524]
[1748666519180,1.5231079,2521.6,2521.5,2.04526]
[1748666519780,1.5231079,2521.6,2521.5,1.2524]
[1748666520475,1.5231079,2521.6,2521.5,2.04526]
[1748666520779,1.5231079,2521.6,2521.5,1.2524]
[1748666521175,1.5231079,2521.6,2521.5,2.04526]
[1748666521578,1.5231079,2521.6,2521.5,1.2524]
[1748666521780,1.5231079,2521.6,2521.5,2.04526]
[1748666522982,1.5231079,2521.6,2521.5,2.71616]
[1748666527586,1.5231079,2521.6,2521.5,1.9233]
[1748666527790,1.5231079,2521.6,2521.5,2.71616]
[1748666528180,1.5231079,2521.6,2521.5,2.04526]
[1748666530488,1.5231079,2521.6,2521.5,1.2524]
[1748666530689,1.5231079,2521.6,2521.5,2.04526]
[1748666537788,0.6758,2522.0,2521.9,0.79273]
[1748666538890,2.36673368,2522.3,2522.2,0.79264]
[1748666539192,2.36673368,2522.3,2522.2,4.00044]
[1748666539687,1.32240713,2522.5,2522.4,0.79258]
[1748666541295,1.32240713,2522.5,2522.4,2.12818]
[1748666542293,1.9148,2522.6,2522.5,0.79255]
[1748666542993,3.23493283,2522.6,2522.5,0.79255]
[1748666547397,1.9148,2522.6,2522.5,0.79255]
[1748666547998,0.6791,2522.6,2522.5,0.79255]
[1748666548395,0.6558,2522.7,2522.6,0.79251]
[1748666548603,0.00594377,2522.8,2522.7,0.79248]
[1748666557105,0.00594377,2522.8,2522.6,0.79249]
[1748666557307,0.00594377,2522.8,2522.4,7.2788]
[1748666557508,1.30544377,2522.8,2522.4,7.2788]
[1748666557708,0.6624,2522.7,2522.6,0.79251]
[1748666559300,0.6624,2522.7,2522.5,4.00033]
[1748666559497,1.9658,2522.6,2522.5,4.00033]
[1748666561904,1.9658,2522.6,2522.2,3.2078]
[1748666562106,1.2529,2522.5,2522.2,3.2078]
[1748666562314,0.79263,2522.3,2522.0,0.79269]
[1748666562506,1.2529,2522.2,2522.1,0.79267]
[1748666562810,2.5527,2522.2,2522.1,0.79267]
[1748666563509,0.6311,2522.2,2522.1,0.79267]
[1748666564826,0.6311,2522.2,2522.1,1.44437]
[1748666566226,0.79841377,2522.8,2522.1,0.6517]
[1748666566426,0.79841377,2522.8,2522.5,3.2078]
[1748666566629,2.035,2522.7,2522.5,3.2078]
[1748666566821,2.03501,2522.6,2522.2,1.3367]
[1748666567021,1.2425,2522.5,2522.3,0.7926]
[1748666567224,1.9244,2522.5,2522.3,0.7926]
[1748666567523,1.2425,2522.4,2522.3,0.7926]
[1748666567825,1.2425,2522.4,2522.3,4.0004]
[1748666568727,2.56385365,2522.4,2522.3,4.0004]
[1748666570530,2.56385365,2522.4,2522.3,3.2078]
[1748666570732,3.19355365,2522.4,2522.3,4.00041]
[1748666571625,3.19355365,2522.4,2522.3,3.2078]
[1748666571828,3.98613365,2522.4,2522.3,3.2078]
[1748666572029,3.98613365,2522.4,2522.2,0.79263]
[1748666572221,1.2683,2522.3,2522.2,0.79263]
[1748666572423,1.2683,2522.3,2522.1,0.79265]
[1748666572923,2.58965365,2522.3,2522.2,0.79264]
[1748666573427,2.58965365,2522.3,2522.1,0.79265]
[1748666573629,1.3561,2522.2,2522.1,0.79265]
[1748666575129,1.3561,2522.2,2522.0,3.2078]
[1748666575428,0.659,2522.1,2522.0,4.0005]
[1748666583635,1.45167,2522.1,2521.8,0.79276]
[1748666583833,0.659,2522.1,2522.0,0.7927]
[1748666584534,2.00695391,2522.1,2522.0,0.7927]
[1748666586439,0.7927,2522.0,2521.9,0.79272]
[1748666586735,1.3392,2522.0,2521.9,0.79272]
[1748666586931,2.68715391,2522.0,2521.9,0.79272]
[1748666588341,3.47987391,2522.0,2521.8,1.327]
[1748666588641,2.68715391,2522.0,2521.9,0.79273]
[1748666589534,2.68715391,2522.0,2521.8,2.11975]
[1748666589943,3.47987391,2522.0,2521.8,2.11975]
[1748666590143,3.47987391,2522.0,2521.8,5.32755]
[1748666590540,1.34795391,2521.9,2521.8,5.32755]
[1748666590840,2.14068391,2521.9,2521.8,5.32755]
[1748666591243,2.14068391,2521.9,2521.8,4.5348]
[1748666591541,2.14068391,2521.9,2521.8,2.11977]
[1748666591743,2.14068391,2521.9,2521.8,4.5348]
[1748666593945,1.34795391,2521.9,2521.8,5.32757]
[1748666594444,1.34795391,2521.9,2521.8,9.38957]
[1748666594740,1.34795391,2521.9,2521.8,14.38957]
[1748666594944,2.14056391,2522.3,2522.0,0.79268]
[1748666595138,2.14056391,2522.3,2522.2,3.2078]
[1748666595340,1.4223,2522.4,2522.2,3.2078]
[1748666595745,0.79261,2522.3,2522.2,3.2078]
[1748666597043,2.09291,2522.3,2522.2,3.2078]
[1748666597242,3.44086206,2522.3,2522.2,3.2078]
[1748666608649,0.79271,2522.0,2521.9,0.79273]
[1748666608847,0.79271,2522.0,2521.9,3.2078]
[1748666609954,2.14066206,2522.0,2521.9,3.2078]
[1748666612152,3.38516206,2522.0,2521.9,3.2078]
[1748666612854,0.7928,2521.7,2521.6,3.2078]
[1748666613053,0.7928,2521.7,2521.6,3.8537]
[1748666613548,2.14075206,2521.7,2521.6,3.8537]
[1748666615362,1.34795206,2521.7,2521.6,4.64653]
[1748666615853,2.14070206,2521.9,2521.7,0.79278]
[1748666616255,0.79277,2521.8,2521.7,0.79278]
[1748666616459,2.14072206,2521.8,2521.6,4.64651]
[1748666616957,1.34795206,2521.7,2521.6,4.64651]
[1748666618258,1.34795206,2521.7,2521.6,3.8537]
[1748666618555,1.34795206,2521.7,2521.6,4.64653]
[1748666618759,2.14075206,2521.7,2521.6,3.8537]
[1748666619058,1.34795206,2521.7,2521.6,4.64653]
[1748666619656,1.34795206,2521.8,2521.7,0.7928]
[1748666621856,1.34795206,2521.9,2521.8,0.79277]
[1748666622459,2.14068206,2521.9,2521.7,0.79278]
[1748666623258,0.79273,2521.9,2521.8,1.2431]
[1748666623661,2.14087245,2521.9,2521.8,1.2431]
[1748666625861,2.14087245,2521.9,2521.8,2.03587]
[1748666626362,1.34814245,2521.9,2521.8,2.03587]
[1748666629857,0.79261,2522.3,2522.0,0.79268]
[1748666630057,0.79261,2522.3,2522.1,3.2078]
[1748666630258,1.4223,2522.4,2522.1,4.4705]
[1748666630457,5.57453368,2522.6,2522.1,4.4705]
[1748666630660,5.57453368,2522.6,2522.2,1.3585]
[1748666630857,5.57453368,2522.6,2522.4,0.79255]
[1748666631059,2.36673368,2522.6,2522.5,1.3585]
[1748666631459,1.42449,2522.7,2522.5,1.3585]
[1748666631658,0.79251,2522.6,2522.5,1.3585]
[1748666631865,2.7922,2522.7,2522.5,1.3585]
[1748666632165,1.34848524,2522.6,2522.5,1.3585]
[1748666632468,1.34848524,2522.6,2522.5,2.15105]
[1748666633163,1.34848524,2522.6,2522.5,2.81885]
[1748666636870,1.34848524,2522.6,2522.5,3.49055]
[1748666637866,0.00594377,2522.8,2522.7,0.79248]
[1748666638067,0.00594377,2522.8,2522.7,4.00028]
[1748666639862,0.00594377,2522.8,2522.7,3.2078]
[1748666640057,0.00594377,2522.8,2522.7,4.00028]
[1748666640468,1.25574377,2522.8,2522.7,4.00028]
[1748666640869,1.25574377,2522.8,2522.7,3.2078]
[1748666641066,2.04819377,2522.8,2522.7,3.2078]
[1748666641463,0.79253,2522.6,2522.4,3.2078]
[1748666641668,0.6248,2522.5,2522.4,4.00036]
[1748666642570,1.8746,2522.5,2522.4,4.00036]
[1748666642771,1.8746,2522.5,2522.4,3.2078]
[1748666642970,1.8746,2522.5,2522.2,0.79263]
[1748666643166,1.8746,2522.5,2522.0,3.2078]
[1748666643167,0.79263,2522.3,2522.0,3.2078]
[1748666643472,2.12155,2522.2,2522.0,3.2078]
[1748666643672,1.3289,2522.1,2522.0,3.2078]
[1748666644674,2.12157,2522.1,2522.0,3.2078]
[1748666644875,0.79272,2522.0,2521.8,0.79275]
[1748666645074,1.9523,2521.9,2521.8,0.79275]
[1748666645469,1.9523,2521.9,2521.7,4.00058]
[1748666645668,1.9734,2521.8,2521.7,4.00058]
[1748666649774,0.6445,2521.8,2521.7,4.00058]
[1748666650180,0.6445,2521.8,2521.7,3.2078]
[1748666650379,0.6445,2521.8,2521.7,4.0006]
[1748666651683,0.6445,2521.8,2521.7,3.2078]
[1748666651979,1.8849,2521.8,2521.7,4.0006]
[1748666654474,6.8849,2521.8,2521.3,0.00594377]
[1748666654675,1.98252,2521.1,2520.3,0.6739]
[1748666654876,3.2078,2520.8,2520.4,0.7932]
[1748666655184,1.3437,2520.7,2520.4,0.79319]
[1748666655378,1.3437,2520.7,2520.5,0.79317]
[1748666655778,1.3437,2520.7,2520.6,0.79314]
[1748666656092,1.3437,2520.7,2520.4,3.2078]
[1748666656093,1.3437,2520.7,2520.5,0.79316]
[1748666656884,1.3437,2520.7,2520.4,4.00098]
[1748666657079,2.13681,2520.7,2520.4,5.35758]
[1748666657585,0.79314,2520.6,2520.4,4.5644]
[1748666657778,2.13683,2520.7,2520.4,4.5644]
[1748666658081,1.3437,2520.7,2520.4,4.5644]
[1748666658283,0.79315,2520.6,2520.4,4.5644]
[1748666658483,1.3437,2520.7,2520.4,4.5644]
[1748666659085,2.13681,2520.7,2520.4,5.35759]
[1748666659884,1.3437,2520.7,2520.5,0.79317]
[1748666660288,2.13681,2520.7,2520.4,5.35759]
[1748666660486,0.79336,2520.0,2519.7,0.79343]
[1748666660784,0.79334,2520.0,2519.7,4.00121]
[1748666660972,0.79334,2520.0,2519.8,1.3197]
[1748666661388,0.79334,2520.0,2519.8,2.11309]
[1748666661584,0.79334,2520.0,2519.8,1.3197]
[1748666662185,0.79337,2519.9,2519.7,4.00121]
[1748666662385,2.68577,2519.9,2519.7,3.2078]
[1748666662586,2.68577,2519.9,2519.7,4.00122]
[1748666663387,2.68577,2519.9,2519.7,3.2078]
[1748666663787,2.68577,2519.9,2519.7,4.00122]
[1748666664684,2.68577,2519.9,2519.7,3.2078]
[1748666664995,0.7934,2519.8,2519.7,3.2078]
[1748666665190,2.6897,2519.8,2519.7,3.2078]
[1748666667096,1.8963,2519.8,2519.7,3.2078]
[1748666667297,2.6897,2519.8,2519.7,3.2078]
[1748666669191,0.79343,2519.7,2519.6,0.00594377]
[1748666669486,6.73572,2519.8,2519.6,0.79939377]
[1748666669685,3.2078,2520.1,2519.6,0.00594377]
[1748666669888,4.00111,2520.1,2519.9,0.79334]
[1748666670092,4.00111,2520.1,2520.0,1.341]
[1748666671187,0.79331,2520.1,2520.0,1.341]
[1748666671392,5.48005,2520.3,2520.1,0.79329]
[1748666671592,0.79327,2520.2,2520.0,2.13432]
[1748666671794,0.7933,2520.1,2520.0,1.341]
[1748666672496,4.6868,2520.3,2519.8,0.6612]
[1748666672794,0.79335,2520.0,2519.8,0.6612]
[1748666672994,0.79335,2520.0,2519.8,1.9924]
[1748666673294,0.79336,2519.9,2519.8,1.9924]
[1748666673496,0.79335,2520.0,2519.8,2.7858]
[1748666673896,0.79336,2519.9,2519.8,1.9924]
[1748666674095,1.3039,2520.2,2519.8,1.9924]
[1748666674394,0.79335,2520.0,2519.8,2.78579]
[1748666674787,0.79336,2519.9,2519.8,1.9924]
[1748666675497,0.79335,2520.0,2519.8,2.7858]
[1748666675896,1.3039,2520.2,2519.8,1.9924]
[1748666676096,0.79335,2520.0,2519.8,2.78579]
[1748666676697,1.3039,2520.2,2519.8,2.78579]
[1748666677090,0.79336,2520.0,2519.8,2.78579]
[1748666677395,0.79336,2519.9,2519.8,2.78579]
[1748666678691,0.79336,2519.9,2519.8,1.9924]
[1748666679195,0.79336,2519.9,2519.7,0.79341]
[1748666679392,0.79341,2519.8,2519.6,4.00719377]
[1748666679592,0.79341,2519.8,2519.6,4.00718377]
[1748666679891,0.6726,2519.7,2519.6,4.00718377]
[1748666680597,1.46603,2519.7,2519.6,3.21374377]
[1748666680792,1.46603,2519.7,2519.6,0.00594377]
[1748666683603,2.80899443,2519.7,2519.6,0.00594377]
[1748666683995,2.01556443,2519.7,2519.3,3.2078]
[1748666684200,0.79362,2519.1,2519.0,5.1568]
[1748666684501,0.7936,2519.2,2519.0,5.95045]
[1748666685402,1.47438,2519.3,2519.1,0.79361]
[1748666685596,1.47437,2519.3,2519.1,2.09091]
[1748666685792,1.47438,2519.3,2519.1,2.0909]
[1748666686096,1.47438,2519.3,2519.2,1.2973]
[1748666686806,2.82137846,2519.3,2519.2,1.2973]
[1748666687401,0.79362,2519.1,2519.0,3.2078]
[1748666687608,0.7936,2519.2,2519.0,2.09095]
[1748666687806,2.02779846,2519.3,2518.7,3.2078]
[1748666688107,0.79371,2518.8,2518.7,3.2078]
[1748666688314,0.79377,2518.6,2518.5,1.45326936]
[1748666688711,0.79377,2518.6,2518.5,0.15596936]
[1748666688916,2.14076846,2518.6,2518.5,0.15596936]
[1748666689212,3.44966846,2518.6,2518.5,0.15596936]
[1748666690015,1.34699846,2518.6,2518.5,0.94976936]
[1748666691805,1.34699846,2518.6,2518.5,2.88946936]
[1748666692009,1.34699846,2518.8,2518.6,0.79377]
[1748666692210,0.79374,2518.7,2518.5,0.77926936]
[1748666692716,1.34699846,2518.6,2518.5,0.77926936]
[1748666693417,2.02789846,2518.6,2518.5,0.77926936]
[1748666694613,2.02789846,2518.6,2518.5,1.57306936]
[1748666695416,2.02789846,2518.6,2518.5,0.15596936]
[1748666696118,2.02789846,2518.6,2518.5,0.94976936]
[1748666699021,1.34699846,2518.6,2518.5,4.15756936]
[1748666699815,6.09305,2519.0,2518.5,3.36376936]
[1748666700025,7.33645,2519.0,2518.8,0.7937]
[1748666700319,2.36673368,2519.2,2518.8,3.2078]
[1748666700518,2.36673368,2519.2,2519.1,0.79362]
[1748666701127,0.00594377,2519.4,2519.3,0.79355]
[1748666701719,0.79947377,2519.4,2519.2,1.44417]
[1748666701924,0.79358,2519.2,2519.1,3.2078]
[1748666702118,6.0016,2519.3,2519.1,3.2078]
[1748666702324,1.3038,2519.2,2519.1,4.0014]
[1748666702626,0.6578,2519.3,2519.2,0.79358]
[1748666702828,0.6578,2519.3,2519.2,1.44418]
[1748666703729,1.34175709,2519.3,2519.2,2.68348]
[1748666706428,1.34175709,2519.3,2519.1,3.2078]
[1748666706630,0.79358,2519.2,2519.1,3.2078]
[1748666706824,2.08838,2519.2,2519.1,3.2078]
[1748666707133,1.2948,2519.2,2519.1,4.00142]
[1748666707628,2.63655709,2519.2,2519.1,4.00142]
[1748666708020,2.00195709,2519.2,2519.1,4.00142]
[1748666708232,1.34175709,2519.2,2519.1,4.00142]
[1748666708926,2.13531709,2519.3,2519.1,4.00142]
[1748666709326,3.41981709,2519.3,2519.1,4.00142]
[1748666709526,2.62625709,2519.3,2519.2,0.79358]
[1748666709829,2.62625709,2519.3,2519.1,3.2078]
[1748666709830,3.41981709,2519.3,2519.1,4.00139]
[1748666710033,1.2845,2519.3,2519.2,0.79358]
[1748666710233,2.07805,2519.3,2519.1,4.0014]
[1748666710532,1.2845,2519.3,2519.1,3.2078]
[1748666710833,1.2845,2519.3,2519.2,0.79358]
[1748666711633,2.62888619,2519.3,2519.2,0.79358]
[1748666711933,1.34438619,2519.3,2519.2,0.79358]
[1748666712126,1.34438619,2519.3,2519.2,2.09968]
[1748666712530,1.34438619,2519.3,2519.2,2.73738]
[1748666713732,2.13793619,2519.3,2519.2,1.3061]
[1748666713933,2.13793619,2519.3,2519.1,4.00139]
[1748666714135,1.34438619,2519.3,2519.2,0.79358]
[1748666714632,2.72698377,2519.4,2519.2,0.79358]
[1748666714835,1.93344377,2519.4,2519.3,0.79355]
[1748666715039,0.66614377,2519.4,2519.3,0.79355]
[1748666715838,2.01234895,2519.4,2519.3,0.79355]
[1748666716339,2.01234895,2519.4,2519.3,2.03025]
[1748666716633,1.35214895,2519.4,2519.3,7.03025]
[1748666716831,1.35214895,2519.4,2519.3,7.70505]
[1748666717838,0.00594377,2519.4,2519.3,7.70505]
[1748666718534,0.79338,2519.9,2519.4,0.00343799]
[1748666718733,1.34516332,2519.8,2519.4,3.21123799]
[1748666718933,1.34516332,2519.8,2519.6,0.79343]
[1748666719140,1.34516332,2519.8,2519.7,0.79343]
[1748666719641,1.34516332,2519.8,2519.6,0.79344]
[1748666719839,1.34516332,2519.8,2519.7,0.79343]
[1748666720630,1.34516332,2519.8,2519.7,2.08073]
[1748666722443,1.34516332,2519.8,2519.5,0.00595581]
[1748666722648,0.6805,2519.7,2519.6,0.79346]
[1748666723140,1.34516332,2519.8,2519.7,0.79343]
[1748666724339,2.82660581,2520.0,2519.7,0.79343]
[1748666724641,2.14018,2519.9,2519.7,0.79343]
[1748666724941,1.3468,2519.9,2519.8,0.7934]
[1748666725243,2.14016,2519.9,2519.7,0.79341]
[1748666725436,0.79339,2519.8,2519.7,0.79341]
[1748666725640,0.79339,2519.8,2519.5,0.67605581]
[1748666725843,2.1383195,2519.8,2519.5,0.67605581]
[1748666726039,1.3449295,2519.8,2519.7,0.79343]
[1748666727442,0.68645581,2520.0,2519.9,0.79336]
[1748666727638,1.47978581,2520.0,2519.7,0.79343]
[1748666727945,0.79337,2519.9,2519.7,0.79341]
[1748666728141,2.13864353,2519.9,2519.7,0.79341]
[1748666728343,3.43864353,2519.9,2519.7,0.79341]
[1748666729045,1.34527353,2519.8,2519.7,0.79341]
[1748666729340,3.43868353,2519.8,2519.6,0.79344]
[1748666729532,3.43868353,2519.8,2519.5,0.79942581]
[1748666729735,1.3,2519.7,2519.6,0.79346]
[1748666730042,3.31377353,2519.7,2519.6,0.79346]
[1748666730246,4.10721353,2519.7,2519.5,0.79942581]
[1748666730543,1.9568,2519.6,2519.5,0.79942581]
[1748666733548,0.6685,2519.7,2519.6,0.79346]
[1748666734942,0.6564,2519.8,2519.7,0.79343]
[1748666735448,2.00272775,2519.8,2519.7,0.79343]
[1748666737753,2.79612775,2519.8,2519.6,0.79344]
[1748666737952,2.00272775,2519.8,2519.7,0.79343]
[1748666738450,3.36052775,2519.8,2519.7,0.79343]
[1748666739550,3.36052775,2519.8,2519.6,0.79345]
[1748666739551,4.15392775,2519.8,2519.6,0.79345]
[1748666739752,1.3578,2519.7,2519.6,0.79345]
[1748666739951,1.3578,2519.7,2519.5,0.00595581]
[1748666740249,0.79346,2519.6,2519.5,0.00595581]
[1748666740653,3.41358775,2519.6,2519.5,0.00595581]
[1748666740853,2.62012775,2519.6,2519.5,0.79944581]
[1748666742356,3.41358775,2519.6,2519.5,0.00595581]
[1748666742556,2.62012775,2519.6,2519.5,0.79944581]
[1748666744663,1.34632775,2519.6,2519.5,0.79944581]
[1748666745349,1.34632775,2519.7,2519.6,0.79346]
[1748666747357,1.34632775,2519.7,2519.6,2.15996]
[1748666747660,1.34632775,2519.7,2519.6,7.15996]
[1748666747861,1.34632775,2519.7,2519.6,10.36776]
[1748666748065,1.34632775,2519.9,2519.8,0.7934]
[1748666749062,1.34632775,2519.9,2519.8,2.1599]
[1748666749364,5.57453368,2520.3,2519.8,1.3665]
[1748666749661,7.01518368,2520.3,2520.0,0.79332]
[1748666749858,1.254,2520.2,2520.0,0.79332]
[1748666750257,1.254,2520.2,2520.1,0.7933]
[1748666752258,3.8552,2520.3,2520.2,0.79327]
[1748666752662,0.6474,2520.3,2520.2,0.79327]
[1748666754663,0.6474,2520.3,2520.2,2.04357]
[1748666755969,0.00595581,2520.4,2520.3,0.79324]
[1748666756161,0.00595581,2520.4,2520.3,2.13634]
[1748666756468,0.00595581,2520.4,2520.3,2.77914]
[1748666765168,4.6635,2521.1,2520.4,1.98297]
[1748666765371,0.6284,2520.9,2520.8,0.79308]
[1748666766872,0.66865581,2521.1,2521.0,0.79302]
[1748666767069,1.29705581,2521.1,2521.0,0.79302]
[1748666767272,0.79303,2521.0,2520.8,0.79901581]
[1748666767478,2.03983,2521.0,2520.8,0.79901581]
[1748666767679,1.2468,2521.0,2520.9,0.79305]
[1748666767978,2.58293769,2521.0,2520.9,0.79305]
[1748666769281,1.33613769,2521.0,2520.9,0.79305]
[1748666769874,1.33613769,2521.0,2520.9,2.07825]
[1748666770175,1.29705581,2521.1,2521.0,0.79302]
[1748666771380,2.53435581,2521.1,2521.0,0.79302]
[1748666775295,2.53435581,2521.1,2520.8,3.21375581]
[1748666775490,0.79305,2520.9,2520.8,0.00595581]
[1748666775795,0.79314,2520.6,2520.5,3.2078]
[1748666776496,3.43614,2520.6,2520.5,3.2078]
[1748666776998,4.77437538,2520.6,2520.5,3.2078]
[1748666777801,3.98123538,2520.6,2520.5,3.2078]
[1748666778798,3.98123538,2520.6,2520.5,4.00097]
[1748666779097,4.77437538,2520.6,2520.5,3.2078]
[1748666779297,4.77437538,2520.6,2520.4,0.79319]
[1748666779497,1.2846,2520.5,2520.4,0.79319]
[1748666779892,2.62283538,2520.5,2520.4,0.79319]
[1748666780596,1.33823538,2520.5,2520.4,0.79319]
[1748666780806,1.33823538,2520.5,2520.4,2.64999]
[1748666781097,2.36673368,2521.0,2520.4,8.83981]
[1748666781398,3.05103368,2521.2,2521.0,0.79302]
[1748666781702,5.21180368,2521.2,2521.0,0.79302]
[1748666781897,2.02715581,2521.1,2520.8,3.2078]
[1748666782104,2.82016581,2521.1,2520.8,0.79307]